fUST/lending_fUST_20251209
["ID","MTS","AMOUNT","RATE_DAILY","PERIOD"]
[397984582,1765263058894,-1126.29,7.671e-05,2]
[397984584,1765263058903,-3549.84,7.671e-05,2]
[397984586,1765263058913,-571.42,7.671e-05,2]
[397984589,1765263058923,-676.42,7.671e-05,2]
[397984591,1765263058932,-968.24,7.671e-05,2]
[397984593,1765263058945,-500.0,7.671e-05,2]
[397984595,1765263058955,-585.77,7.671e-05,2]
[397984597,1765263058965,-500.0,7.671e-05,2]
[397984599,1765263058975,-1194.08,7.671e-05,2]
[397984621,1765263059166,-700.36,7.671e-05,2]
[397984623,1765263059176,-801.71,7.671e-05,2]
[397984625,1765263059186,-618.01,7.671e-05,2]
[397984627,1765263059196,-14567.01,7.671e-05,2]
[397984629,1765263059205,-1214.81,7.671e-05,2]
[397984631,1765263059215,-500.0,7.671e-05,2]
[397984634,1765263059226,-4667.19,7.671e-05,2]
[397984636,1765263059236,-500.0,7.671e-05,2]
[397984637,1765263059245,-2209.11,7.671e-05,2]
[397984640,1765263059254,-5032.12,7.671e-05,2]
[397984642,1765263059264,-500.0,7.671e-05,2]
[397984644,1765263059273,-869.77,7.671e-05,2]
[397984646,1765263059282,-1075.81,7.671e-05,2]
[397984648,1765263059292,-500.0,7.671e-05,2]
[397984650,1765263059301,-525.7,7.671e-05,2]
[397984652,1765263059310,-964.48,7.671e-05,2]
[397984653,1765263059320,-609.46,7.671e-05,2]
[397984655,1765263059332,-529.56,7.671e-05,2]
[397984657,1765263059341,-2864.2,7.671e-05,2]
[397984659,1765263059351,-1003.39,7.671e-05,2]
[397984661,1765263059361,-619.35,7.671e-05,2]
[397984663,1765263059370,-966.02,7.671e-05,2]
[397984665,1765263059380,-979.29,7.671e-05,2]
[397984667,1765263059393,-500.0,7.671e-05,2]
[397984669,1765263059402,-6836.28,7.671e-05,2]
[397984671,1765263059411,-4324.93,7.671e-05,2]
[397984673,1765263059421,-327.76967349,7.671e-05,2]
[397986888,1765263462193,-415.0,6.639e-05,2]
[397986889,1765263462226,-24585.0,6.723e-05,2]
[397986890,1765263463224,-25000.0,6.723e-05,2]
[397986891,1765263463958,-25000.0,6.723e-05,2]
[397986892,1765263464741,-25000.0,6.723e-05,2]
[397986893,1765263465677,-25000.0,6.723e-05,2]
[397986894,1765263466439,-25000.0,6.723e-05,2]
[397986895,1765263467376,-25000.0,6.723e-05,2]
[397986896,1765263468296,-25000.0,6.723e-05,2]
[397986897,1765263469284,-25000.0,6.723e-05,2]
[397986898,1765263470059,-25000.0,6.723e-05,2]
[397986899,1765263471031,-25000.0,6.723e-05,2]
[397986900,1765263471882,-25000.0,6.723e-05,2]
[397986901,1765263473017,-25000.0,6.723e-05,2]
[397986902,1765263473816,-25000.0,6.723e-05,2]
[397986903,1765263474718,-25000.0,6.723e-05,2]
[397986904,1765263475647,-25000.0,6.723e-05,2]
[397986905,1765263476624,-25000.0,6.723e-05,2]
[397986906,1765263477453,-25000.0,6.723e-05,2]
[397986907,1765263478483,-25000.0,6.723e-05,2]
[397986908,1765263485210,-9000.0,6.723e-05,2]
[397986909,1765263722553,10000.01,1e-05,5]
[397986910,1765263722575,10000.01,1e-05,5]
[397986911,1765263722597,10000.01,1e-05,5]
[397986912,1765263722619,10000.01,1e-05,5]
[397986913,1765263722642,4145.96383715,1e-05,5]
[397986919,1765264232896,-183.0,6.622e-05,2]
[397986920,1765264232907,-300.0,6.622e-05,2]
[397986921,1765264232916,-285.41661478,6.622e-05,2]
[397986922,1765264232928,-228.58338522,6.622e-05,2]
[397986923,1765264232937,-300.0,6.622e-05,2]
[397986924,1765264232947,-1200.0,6.622e-05,2]
[397986925,1765264232956,-26335.75451623,6.623e-05,2]
[397986926,1765264232967,-4688.45,6.623e-05,2]
[397986927,1765264233009,-305.24391306,6.623e-05,2]
[397986955,1765264238926,-5532.61197048,6.623e-05,2]
[397986998,1765264240976,-19470.50213203,6.623e-05,2]
[397987000,1765264240986,-3435.90441041,6.623e-05,2]
[397987264,1765264243696,-6770.58491379,6.623e-05,2]
[397987321,1765264244212,-209.5683591,6.623e-05,2]
[397987570,1765264246758,-678.92998736,6.623e-05,2]
[397987658,1765264635831,-457.68,6.491e-05,2]
[397987659,1765264635858,-327.82641802,6.55e-05,2]
[397987660,1765264635884,-300.0,6.608e-05,2]
[397987661,1765264635910,-1360.0,6.609e-05,2]
[397987662,1765264635942,-2171.719,6.609e-05,2]
[397987663,1765264635969,-648.368,6.609e-05,2]
[397987664,1765264635995,-300.0,6.622e-05,2]
[397987665,1765264636020,-300.0,6.622e-05,2]
[397987666,1765264636047,-300.0,6.622e-05,2]
[397987667,1765264636371,-1200.0,6.622e-05,2]
[397987668,1765264636393,-457.68,6.623e-05,2]
[397987669,1765264636405,-327.82641802,6.623e-05,2]
[397987670,1765264636427,-300.0,6.623e-05,2]
[397987671,1765264636439,-1360.0,6.623e-05,2]
[397987672,1765264636450,-2171.719,6.623e-05,2]
[397987673,1765264636467,-648.368,6.623e-05,2]
[397987674,1765264636484,-300.0,6.623e-05,2]
[397987675,1765264636507,-300.0,6.623e-05,2]
[397987676,1765264636518,-300.0,6.623e-05,2]
[397987677,1765264636534,-1200.0,6.623e-05,2]
[397987678,1765264636550,-35268.81316396,6.623e-05,2]
[397987681,1765264759259,-300.0,6.622e-05,2]
[397987682,1765264759287,-321.26988966,6.623e-05,2]
[397987683,1765264759306,-300.0,6.623e-05,2]
[397987684,1765264759376,-321.26988966,6.623e-05,2]
[397987685,1765264759433,-28757.46022068,6.623e-05,2]
[397987686,1765264799626,-30000.0,6.623e-05,2]
[397987688,1765265116943,454.39,5.011e-05,2]
[397987689,1765265143108,-1553.05217297,6.426e-05,2]
[397987690,1765265143128,-220.62020375,6.459e-05,2]
[397987694,1765265247093,182.0001692,0.00010561,9]
[397987698,1765265337435,-94.22428812,6.459e-05,2]
[397987699,1765265337465,-366.144,6.491e-05,2]
[397987700,1765265337496,-300.0,6.522e-05,2]
[397987701,1765265337644,-1338.61067856,6.523e-05,2]
[397987702,1765265337680,-10000.01,6.523e-05,2]
[397987703,1765265337845,-10000.01,6.523e-05,2]
[397987704,1765265337927,-10000.01,6.523e-05,2]
[397987705,1765265338062,-10000.01,6.523e-05,2]
[397987706,1765265338200,-10000.01,6.523e-05,2]
[397987707,1765265338317,-10000.01,6.523e-05,2]
[397987708,1765265338419,-10000.01,6.523e-05,2]
[397987709,1765265338556,-10000.01,6.523e-05,2]
[397987710,1765265338747,-10000.01,6.523e-05,2]
[397987711,1765265338861,-10000.01,6.523e-05,2]
[397987712,1765265339011,-10000.01,6.523e-05,2]
[397987713,1765265339121,-10000.01,6.523e-05,2]
[397987714,1765265339237,-10000.01,6.523e-05,2]
[397987715,1765265339361,-10000.01,6.523e-05,2]
[397987716,1765265343330,-300.0,6.522e-05,2]
[397987717,1765265343377,-9400.01,6.523e-05,2]
[397987718,1765265343521,-10000.01,6.523e-05,2]
[397987719,1765265343640,-10000.01,6.523e-05,2]
[397987720,1765265343790,-10000.01,6.523e-05,2]
[397987721,1765265343932,-10000.01,6.523e-05,2]
[397987722,1765265344044,-10000.01,6.523e-05,2]
[397987723,1765265344159,-10000.01,6.523e-05,2]
[397987724,1765265347347,-10000.01,6.523e-05,2]
[397987725,1765265347405,-9674.22490049,6.523e-05,2]
[397987726,1765265347415,-325.78509951,6.609e-05,2]
[397987727,1765265347482,-89.21490049,6.609e-05,2]
[397987728,1765265347491,-872.68003498,6.609e-05,2]
[397987729,1765265347501,-1200.0,6.622e-05,2]
[397987730,1765265347510,-250.0,6.622e-05,2]
[397987731,1765265347519,-514.0,6.623e-05,2]
[397987732,1765265347528,-7074.11506453,6.673e-05,2]
[397987733,1765265347588,-10000.01,6.673e-05,2]
[397987734,1765265347602,-7921.76893337,6.673e-05,2]
[397987735,1765265347612,-153.0,6.68e-05,2]
[397987736,1765265347621,-302.0621335,6.68e-05,2]
[397987737,1765265347631,-500.0,6.722e-05,2]
[397987738,1765265347641,-262.09132678,6.722e-05,2]
[397987739,1765265347650,-602.2022825,6.73e-05,2]
[397987740,1765265347660,-258.88532385,6.73e-05,2]
[397987741,1765265347732,-43.14803625,6.73e-05,2]
[397987742,1765265347742,-153.0,6.73e-05,2]
[397987743,1765265347751,-153.0,6.73e-05,2]
[397987744,1765265347760,-865.385261,6.73e-05,2]
[397987745,1765265347771,-872.68003496,6.738e-05,2]
[397987746,1765265347781,-3430.4038734,6.746e-05,2]
[397987747,1765265347790,-153.0,6.75e-05,2]
[397987748,1765265347799,-396.7200019,6.75e-05,2]
[397987749,1765265347810,-153.0,6.75e-05,2]
[397987750,1765265347819,-300.0,6.856e-05,2]
[397987751,1765265347829,-300.0,6.856e-05,2]
[397987752,1765265347838,-300.0,6.856e-05,2]
[397987753,1765265347848,-300.0,6.856e-05,2]
[397987754,1765265347857,-300.0,6.856e-05,2]
[397987755,1765265347866,-300.0,6.856e-05,2]
[397987756,1765265347876,-300.0,6.856e-05,2]
[397987757,1765265347886,-300.0,6.856e-05,2]
[397987758,1765265347895,-300.0,6.856e-05,2]
[397987759,1765265347905,-300.0,6.856e-05,2]
[397987760,1765265347914,-300.0,6.856e-05,2]
[397987761,1765265347924,-300.0,6.856e-05,2]
[397987762,1765265347934,-179.67279249,6.856e-05,2]
[397987763,1765265370703,1000.0,0.000115,10]
[397987810,1765265431764,-120.32720751,6.856e-05,2]
[397987812,1765265431773,-201.67279249,6.856e-05,2]
[397987814,1765265431784,-98.32720751,6.856e-05,2]
[397987816,1765265431793,-300.0,6.856e-05,2]
[397987817,1765265431802,-600.0,6.856e-05,2]
[397987818,1765265431811,-517.0,6.856e-05,2]
[397987819,1765265431821,-151.0,6.856e-05,2]
[397987820,1765265431830,-151.0,6.856e-05,2]
[397987821,1765265431839,-226.68261486,6.856e-05,2]
[397987822,1765265431848,-308.54760203,6.861e-05,2]
[397987823,1765265431862,-872.68003496,6.866e-05,2]
[397987825,1765265431871,-300.0,6.954e-05,2]
[397987827,1765265431880,-300.0,6.954e-05,2]
[397987829,1765265431891,-300.0,6.954e-05,2]
[397987831,1765265431900,-1200.0,6.954e-05,2]
[397987833,1765265431909,-300.0,6.954e-05,2]
[397987835,1765265431919,-306.0,6.96e-05,2]
[397987837,1765265431928,-397.5243554,6.96e-05,2]
[397987839,1765265431937,-461.2,6.981e-05,2]
[397987842,1765265431946,-872.68003496,6.995e-05,2]
[397987843,1765265431955,-2579.17784983,7.1e-05,2]
[397987845,1765265431964,-259.25,7.1e-05,2]
[397987847,1765265431973,-160.0,7.122e-05,2]
[397987849,1765265431983,-347.30356795,7.123e-05,2]
[397987850,1765265431992,-500.0,7.123e-05,2]
[397987851,1765265432001,-500.0,7.123e-05,2]
[397987852,1765265432010,-500.0,7.123e-05,2]
[397987853,1765265432019,-500.29817104,7.123e-05,2]
[397987854,1765265432028,-500.0,7.123e-05,2]
[397987855,1765265432037,-297.99098839,7.123e-05,2]
[397987856,1765265432046,-169.824222,7.123e-05,2]
[397987857,1765265432055,-2249.334794,7.123e-05,2]
[397987858,1765265432064,-541.21,7.123e-05,2]
[397987859,1765265432073,-862.54,7.123e-05,2]
[397987860,1765265432085,-500.30341793,7.123e-05,2]
[397987861,1765265432094,-500.0,7.123e-05,2]
[397987862,1765265432103,-500.0,7.123e-05,2]
[397987863,1765265432112,-500.0,7.123e-05,2]
[397987864,1765265432122,-500.31554753,7.123e-05,2]
[397987865,1765265432131,-1100.69,7.123e-05,2]
[397987866,1765265432140,-500.0,7.123e-05,2]
[397987867,1765265432151,-500.0,7.123e-05,2]
[397987868,1765265432161,-500.0,7.123e-05,2]
[397987869,1765265432171,-568.57,7.123e-05,2]
[397987870,1765265432180,-500.31597512,7.123e-05,2]
[397987871,1765265432189,-500.0,7.123e-05,2]
[397987872,1765265432199,-500.0,7.123e-05,2]
[397987873,1765265432208,-1361.36,7.123e-05,2]
[397987874,1765265432217,-501.01649346,7.123e-05,2]
[397987875,1765265432227,-500.0,7.123e-05,2]
[397987876,1765265432236,-500.0,7.123e-05,2]
[397987877,1765265432246,-500.39978613,7.123e-05,2]
[397987878,1765265432255,-500.0,7.123e-05,2]
[397987879,1765265432263,-500.0,7.123e-05,2]
[397987880,1765265432272,-500.68635527,7.123e-05,2]
[397987881,1765265432281,-806.21,7.123e-05,2]
[397987882,1765265432292,-500.1990332,7.123e-05,2]
[397987883,1765265432303,-500.0,7.123e-05,2]
[397987884,1765265432313,-500.28635031,7.123e-05,2]
[397987885,1765265432322,-500.0,7.123e-05,2]
[397987886,1765265432331,-500.0,7.123e-05,2]
[397987887,1765265432340,-500.81613493,7.123e-05,2]
[397987888,1765265432349,-500.0,7.123e-05,2]
[397987889,1765265432359,-500.0,7.123e-05,2]
[397987890,1765265432369,-500.0,7.123e-05,2]
[397987891,1765265432378,-500.0,7.123e-05,2]
[397987892,1765265432387,-500.0,7.123e-05,2]
[397987893,1765265432396,-500.4082217,7.123e-05,2]
[397987894,1765265432406,-177.47186364,7.123e-05,2]
[397987895,1765265432415,-500.0,7.123e-05,2]
[397987896,1765265432425,-500.0,7.123e-05,2]
[397987897,1765265432434,-500.16959017,7.123e-05,2]
[397987898,1765265432443,-500.0,7.123e-05,2]
[397987899,1765265432453,-1017.81,7.123e-05,2]
[397987900,1765265432462,-500.0,7.123e-05,2]
[397987901,1765265432472,-500.0,7.123e-05,2]
[397987902,1765265432481,-500.0,7.123e-05,2]
[397987903,1765265432491,-500.95424314,7.123e-05,2]
[397987904,1765265432500,-500.0,7.123e-05,2]
[397987905,1765265432510,-500.0,7.123e-05,2]
[397987906,1765265432519,-501.1252799,7.123e-05,2]
[397987907,1765265432529,-502.0599128,7.123e-05,2]
[397987908,1765265432538,-502.75935728,7.123e-05,2]
[397987909,1765265432547,-500.0,7.123e-05,2]
[397987910,1765265432556,-501.99661573,7.123e-05,2]
[397987911,1765265432567,-501.10623529,7.123e-05,2]
[397987912,1765265432576,-500.46636028,7.123e-05,2]
[397987913,1765265432586,-500.0,7.123e-05,2]
[397987914,1765265432595,-500.0,7.123e-05,2]
[397987915,1765265432605,-433.67177917,7.123e-05,2]
[397987967,1765265438128,-66.32822083,7.123e-05,2]
[397987969,1765265438138,-510.70327442,7.123e-05,2]
[397988244,1765265440972,-4.01103283,7.123e-05,2]
[397988246,1765265440982,-500.38345792,7.123e-05,2]
[397988248,1765265440991,-500.0,7.123e-05,2]
[397988250,1765265441000,-500.0,7.123e-05,2]
[397988252,1765265441010,-500.0,7.123e-05,2]
[397988254,1765265441019,-500.58285663,7.123e-05,2]
[397988256,1765265441028,-501.59332049,7.123e-05,2]
[397988258,1765265441037,-81.18317494,7.123e-05,2]
[397988261,1765265441059,-419.9160816,7.123e-05,2]
[397988263,1765265441068,-500.50121472,7.123e-05,2]
[397988265,1765265441077,-501.8250821,7.123e-05,2]
[397988267,1765265441089,-501.20455059,7.123e-05,2]
[397988269,1765265441099,-500.0,7.123e-05,2]
[397988271,1765265441108,-501.69244379,7.123e-05,2]
[397988273,1765265441118,-500.0,7.123e-05,2]
[397988275,1765265441127,-500.49964942,7.123e-05,2]
[397988277,1765265441136,-500.68591525,7.123e-05,2]
[397988279,1765265441145,-500.92461922,7.123e-05,2]
[397988281,1765265441154,-502.73413863,7.123e-05,2]
[397988283,1765265441163,-500.21690367,7.123e-05,2]
[397988285,1765265441173,-843.89,7.123e-05,2]
[397988287,1765265441182,-500.0,7.123e-05,2]
[397988289,1765265441191,-500.0,7.123e-05,2]
[397988291,1765265441200,-497.88389657,7.123e-05,2]
[397988293,1765265441209,-514.7390431,7.123e-05,2]
[397988294,1765265441218,-500.0,7.123e-05,2]
[397988296,1765265441227,-500.53774819,7.123e-05,2]
[397988298,1765265441236,-481.89151367,7.123e-05,2]
[397988300,1765265441246,-501.10206788,7.123e-05,2]
[397988303,1765265441255,-500.26394428,7.123e-05,2]
[397988304,1765265441264,-500.3844449,7.123e-05,2]
[397988307,1765265441274,-500.0,7.123e-05,2]
[397988309,1765265441284,-503.5564636,7.123e-05,2]
[397988311,1765265441293,-489.01265818,7.123e-05,2]
[397988313,1765265441302,-500.0,7.123e-05,2]
[397988314,1765265441311,-500.0,7.123e-05,2]
[397988316,1765265441320,-501.21117584,7.123e-05,2]
[397988318,1765265441330,-500.89277713,7.123e-05,2]
[397988320,1765265441339,-501.51227943,7.123e-05,2]
[397988322,1765265441348,-501.19811763,7.123e-05,2]
[397988325,1765265441357,-639.81,7.123e-05,2]
[397988326,1765265441367,-500.68240579,7.123e-05,2]
[397988328,1765265441376,-500.22309966,7.123e-05,2]
[397988331,1765265441386,-500.13164813,7.123e-05,2]
[397988333,1765265441395,-500.0,7.123e-05,2]
[397988335,1765265441405,-559.47,7.123e-05,2]
[397988336,1765265441414,-500.28992228,7.123e-05,2]
[397988338,1765265441423,-1120.26,7.123e-05,2]
[397988340,1765265441433,-500.23506207,7.123e-05,2]
[397988342,1765265441442,-500.25641592,7.123e-05,2]
[397988344,1765265441451,-239.75,7.123e-05,2]
[397988346,1765265441462,-501.15728439,7.123e-05,2]
[397988349,1765265441471,-500.0,7.123e-05,2]
[397988351,1765265441481,-500.0,7.123e-05,2]
[397988352,1765265441491,-874.86,7.123e-05,2]
[397988355,1765265441500,-500.0,7.123e-05,2]
[397988356,1765265441510,-500.0,7.123e-05,2]
[397988358,1765265441519,-500.54830825,7.123e-05,2]
[397988360,1765265441528,-501.73641174,7.123e-05,2]
[397988362,1765265441538,-500.57337641,7.123e-05,2]
[397988364,1765265441547,-406.6065473,7.123e-05,2]
[397988366,1765265441557,-938.13,7.123e-05,2]
[397988368,1765265441567,-500.33958727,7.123e-05,2]
[397988370,1765265441577,-500.0,7.123e-05,2]
[397988372,1765265441586,-500.0,7.123e-05,2]
[397988374,1765265441595,-662.87,7.123e-05,2]
[397988376,1765265441604,-500.0,7.123e-05,2]
[397988378,1765265441614,-1216.18,7.123e-05,2]
[397988380,1765265441624,-500.0,7.123e-05,2]
[397988382,1765265441633,-500.0,7.123e-05,2]
[397988384,1765265441642,-501.92212698,7.123e-05,2]
[397988386,1765265441651,-502.1467633,7.123e-05,2]
[397988388,1765265441661,-500.0,7.123e-05,2]
[397988389,1765265441669,-500.0,7.123e-05,2]
[397988390,1765265441678,-500.0,7.123e-05,2]
[397988391,1765265441687,-500.0,7.123e-05,2]
[397988392,1765265441696,-607.34,7.123e-05,2]
[397988393,1765265441705,-501.72396418,7.123e-05,2]
[397988395,1765265441714,-500.0,7.123e-05,2]
[397988397,1765265441723,-500.26365829,7.123e-05,2]
[397988399,1765265441732,-551.53,7.123e-05,2]
[397988401,1765265441741,-502.39958164,7.123e-05,2]
[397988403,1765265441750,-516.92176084,7.123e-05,2]
[397988404,1765265441759,-500.0,7.123e-05,2]
[397988407,1765265441768,-500.68713388,7.123e-05,2]
[397988409,1765265441777,-500.95237728,7.123e-05,2]
[397988411,1765265441786,-1784.37,7.123e-05,2]
[397988413,1765265441796,-606.6,7.123e-05,2]
[397988415,1765265441805,-500.0,7.123e-05,2]
[397988417,1765265441814,-498.92886887,7.123e-05,2]
[397988419,1765265441823,-500.24608461,7.123e-05,2]
[397988420,1765265441832,-500.0,7.123e-05,2]
[397988422,1765265441841,-500.0,7.123e-05,2]
[397988424,1765265441850,-501.15340078,7.123e-05,2]
[397988426,1765265441859,-508.28,7.123e-05,2]
[397988428,1765265441868,-612.64859882,7.123e-05,2]
[397988430,1765265441877,-671.88,7.123e-05,2]
[397988432,1765265441886,-500.38269608,7.123e-05,2]
[397988434,1765265441895,-501.37339714,7.123e-05,2]
[397988436,1765265441904,-500.0,7.123e-05,2]
[397988438,1765265441914,-500.0,7.123e-05,2]
[397988440,1765265441922,-500.24944197,7.123e-05,2]
[397988443,1765265441931,-497.68010106,7.123e-05,2]
[397988444,1765265441940,-495.0,7.123e-05,2]
[397988447,1765265441950,-500.9985058,7.123e-05,2]
[397988448,1765265441958,-501.28498902,7.123e-05,2]
[397988451,1765265441968,-557.33,7.123e-05,2]
[397988453,1765265441977,-500.72056571,7.123e-05,2]
[397988455,1765265441986,-500.0,7.123e-05,2]
[397988456,1765265441995,-500.75310736,7.123e-05,2]
[397988458,1765265442004,-714.18,7.123e-05,2]
[397988460,1765265442013,-500.26193323,7.123e-05,2]
[397988462,1765265442022,-500.0,7.123e-05,2]
[397988465,1765265442032,-500.0,7.123e-05,2]
[397988466,1765265442040,-493.0,7.123e-05,2]
[397988469,1765265442050,-501.95547324,7.123e-05,2]
[397988471,1765265442059,-487.53106572,7.123e-05,2]
[397988473,1765265442069,-500.0,7.123e-05,2]
[397988475,1765265442079,-500.0,7.123e-05,2]
[397988477,1765265442091,-500.0,7.123e-05,2]
[397988479,1765265442100,-500.0,7.123e-05,2]
[397988481,1765265442108,-534.16470637,7.123e-05,2]
[397988483,1765265442117,-500.0,7.123e-05,2]
[397988485,1765265442127,-500.93279045,7.123e-05,2]
[397988487,1765265442136,-500.0,7.123e-05,2]
[397988489,1765265442145,-925.43,7.123e-05,2]
[397988490,1765265442155,-502.14944903,7.123e-05,2]
[397988492,1765265442165,-500.0,7.123e-05,2]
[397988495,1765265442175,-500.0,7.123e-05,2]
[397988496,1765265442184,-500.80274912,7.123e-05,2]
[397988498,1765265442193,-500.0,7.123e-05,2]
[397988501,1765265442203,-621.16,7.123e-05,2]
[397988502,1765265442212,-500.0,7.123e-05,2]
[397988504,1765265442220,-501.58815965,7.123e-05,2]
[397988506,1765265442229,-500.70184564,7.123e-05,2]
[397988508,1765265442238,-500.62747962,7.123e-05,2]
[397988510,1765265442247,-500.79286386,7.123e-05,2]
[397988514,1765265442257,-501.31595744,7.123e-05,2]
[397988518,1765265442265,-501.9356136,7.123e-05,2]
[397988547,1765265442487,-648.42239145,7.123e-05,2]
[397988549,1765265442498,-500.0,7.123e-05,2]
[397988551,1765265442507,-500.89237703,7.123e-05,2]
[397988553,1765265442517,-500.0,7.123e-05,2]
[397988555,1765265442526,-500.0,7.123e-05,2]
[397988557,1765265442535,-591.79038513,7.123e-05,2]
[397988559,1765265442544,-500.33003882,7.123e-05,2]
[397988561,1765265442554,-500.0,7.123e-05,2]
[397988563,1765265442564,-701.0,7.123e-05,2]
[397988565,1765265442574,-525.6,7.123e-05,2]
[397988567,1765265442584,-501.12113264,7.123e-05,2]
[397988569,1765265442593,-500.0,7.123e-05,2]
[397988571,1765265442603,-500.0,7.123e-05,2]
[397988572,1765265442612,-500.0,7.123e-05,2]
[397988575,1765265442622,-501.68399398,7.123e-05,2]
[397988577,1765265442630,-982.13,7.123e-05,2]
[397988578,1765265442639,-501.3879516,7.123e-05,2]
[397988580,1765265442649,-500.0,7.123e-05,2]
[397988582,1765265442659,-500.0,7.123e-05,2]
[397988584,1765265442668,-500.41490751,7.123e-05,2]
[397988587,1765265442678,-500.28394545,7.123e-05,2]
[397988589,1765265442688,-500.25414451,7.123e-05,2]
[397988590,1765265442697,-500.0,7.123e-05,2]
[397988592,1765265442706,-500.0,7.123e-05,2]
[397988594,1765265442716,-500.0,7.123e-05,2]
[397988596,1765265442725,-500.0,7.123e-05,2]
[397988599,1765265442735,-500.0,7.123e-05,2]
[397988600,1765265442744,-500.57434871,7.123e-05,2]
[397988602,1765265442753,-500.0672688,7.123e-05,2]
[397988604,1765265442762,-502.29569506,7.123e-05,2]
[397988606,1765265442771,-501.75672932,7.123e-05,2]
[397988609,1765265442782,-500.0,7.123e-05,2]
[397988611,1765265442792,-2118.03,7.123e-05,2]
[397988613,1765265442801,-500.22972423,7.123e-05,2]
[397988615,1765265442810,-500.50256223,7.123e-05,2]
[397988617,1765265442819,-500.19801015,7.123e-05,2]
[397988618,1765265442828,-500.11173053,7.123e-05,2]
[397988620,1765265442837,-501.3435089,7.123e-05,2]
[397988622,1765265442846,-506.95573331,7.123e-05,2]
[397988624,1765265442856,-500.0,7.123e-05,2]
[397988626,1765265442865,-500.11360808,7.123e-05,2]
[397988628,1765265442874,-500.0,7.123e-05,2]
[397988630,1765265442884,-500.73127637,7.123e-05,2]
[397988632,1765265442894,-500.0,7.123e-05,2]
[397988634,1765265442903,-60.48456562,7.123e-05,2]
[397994334,1765265816004,-300.0,6.421e-05,2]
[397994335,1765265816033,-300.0,6.421e-05,2]
[397994336,1765265816060,-1200.0,6.422e-05,2]
[397994337,1765265816087,-300.0,6.422e-05,2]
[397994338,1765265816115,-162.0,6.422e-05,2]
[397994339,1765265816144,-1200.0,6.422e-05,2]
[397994340,1765265816170,-300.0,6.422e-05,2]
[397994341,1765265816198,-302.37664999,6.423e-05,2]
[397994342,1765265822802,300.0,6.422e-05,2]
[397994343,1765265941222,-150.0,0.00012433,14]
[397994348,1765266288548,-172.75404161,5.763e-05,2]
[397994349,1765266288577,-296.32911699,6.125e-05,2]
[397994350,1765266288606,-508.0,6.125e-05,2]
[397994351,1765266288634,-292.916,6.295e-05,2]
[397994352,1765266288662,-1200.0,6.399e-05,2]
[397994353,1765266288691,-1200.0,6.399e-05,2]
[397994354,1765266288721,-300.0,6.399e-05,2]
[397994355,1765266288750,-976.38186282,6.4e-05,3]
[397994356,1765266289007,-9807.25795716,6.4e-05,2]
[397994357,1765266289037,-10000.01,6.4e-05,2]
[397994358,1765266289057,-10000.01,6.4e-05,2]
[397994359,1765266289121,-1579.30191909,6.4e-05,2]
[397994360,1765266289150,-6841.40616182,6.4e-05,2]
[397994361,1765266302771,300.0,6.422e-05,2]
[397994362,1765266303204,1200.0,6.422e-05,2]
[397994363,1765266336229,-870.00418728,6.423e-05,2]
[397994364,1765266343180,-22013.13669232,6.423e-05,2]
[397994365,1765266402348,-300.0,6.422e-05,2]
[397994366,1765266402382,-29400.0,6.423e-05,2]
[397994367,1765266456183,-300.0,6.422e-05,2]
[397994368,1765266456217,-24400.0,6.423e-05,2]
[397994387,1765266632040,-300.0,6.322e-05,2]
[397994388,1765266632050,-1200.0,6.322e-05,2]
[397994389,1765266632059,-510.0,6.322e-05,2]
[397994390,1765266632068,-4424.69795004,6.323e-05,2]
[397994391,1765266632079,-3599.6683908,6.323e-05,2]
[397994471,1765266638483,-4967.68010709,6.323e-05,2]
[397994658,1765266640490,-500.0,6.323e-05,2]
[397994660,1765266640502,-120418.69350245,6.323e-05,2]
[397994662,1765266640511,-250.0,6.399e-05,3]
[397994664,1765266640520,-174.536007,6.399e-05,2]
[397994666,1765266640529,-1200.0,6.422e-05,2]
[397994668,1765266640540,-290.40253465,6.487e-05,2]
[397994670,1765266640549,-170.7897522,6.535e-05,2]
[397994673,1765266640558,-300.0,6.55e-05,2]
[397994674,1765266640568,-300.0,6.55e-05,2]
[397994676,1765266640577,-300.0,6.55e-05,2]
[397994678,1765266640586,-300.0,6.55e-05,2]
[397994680,1765266640595,-300.0,6.55e-05,2]
[397994682,1765266640604,-300.0,6.55e-05,2]